bitfinex/quotes_SOLUSD_20220208
["timestamp","ask_amount","ask_price","bid_price","bid_amount"]
[1644329051687,40.09558792,112.63,112.57,13.5725]
[1644329051887,40.09558792,112.63,112.57,13.3225]
[1644329052087,40.09558792,112.63,112.55,37.3052]
[1644329052288,1.25913168,112.62,112.55,37.3052]
[1644329052488,40.56011336,112.61,112.55,37.3052]
[1644329052794,40.56011336,112.61,112.54,0.024]
[1644329052988,41.81924504,112.61,112.53,0.024]
[1644329053292,42.75477677,112.59,112.53,0.024]
[1644329053488,42.75477677,112.59,112.52,13.3285]
[1644329054090,42.75477677,112.59,112.51,0.024]
[1644329054292,56.08467677,112.59,112.51,0.024]
[1644329054499,67.58667677,112.59,112.51,0.024]
[1644329054689,67.58667677,112.59,112.5,0.024]
[1644329054690,24.406,112.58,112.5,0.024]
[1644329055291,37.28843925,112.57,112.5,0.024]
[1644329056594,37.28843925,112.57,112.5,13.355]
[1644329056792,37.28843925,112.57,112.5,13.605]
[1644329059511,37.28843925,112.57,112.5,15.49733229]
[1644329060211,37.28843925,112.57,112.5,13.605]
[1644329061313,37.28843925,112.57,112.5,26.9074]
[1644329062015,37.28843925,112.57,112.5,28.01171573]
[1644329062215,24.406,112.58,112.51,1.89233229]
[1644329062414,24.406,112.58,112.53,13.327]
[1644329062814,13.3277,112.61,112.53,13.577]
[1644329063014,23.8715,112.61,112.53,13.601]
[1644329063214,46.07286418,112.6,112.53,13.601]
[1644329063414,42.07286418,112.6,112.53,13.601]
[1644329066722,42.07286418,112.6,112.53,13.351]
[1644329067322,42.07286418,112.6,112.53,26.9471]
[1644329067723,42.07286418,112.6,112.53,27.1731]
[1644329067923,42.07286418,112.6,112.53,40.0871]
[1644329069925,42.07286418,112.6,112.53,26.491]
[1644329072726,42.07286418,112.6,112.53,13.601]
[1644329074528,42.07286418,112.6,112.53,26.8333]
[1644329074726,42.07286418,112.6,112.53,32.8333]
[1644329076032,42.07286418,112.6,112.53,26.8333]
[1644329076631,42.07286418,112.6,112.53,32.8333]
[1644329076834,42.07286418,112.6,112.53,26.8333]
[1644329078532,23.8715,112.61,112.53,38.8075424]
[1644329078734,23.8715,112.61,112.54,1.89233229]
[1644329078936,23.2742,112.62,112.54,1.91633229]
[1644329079134,23.2742,112.62,112.56,13.3229]
[1644329079337,23.2742,112.62,112.56,13.5729]
[1644329079535,36.05355938,112.61,112.56,13.5729]
[1644329082336,36.05355938,112.61,112.56,19.5729]
[1644329083138,36.05355938,112.61,112.56,13.5729]
[1644329083941,36.05355938,112.61,112.56,13.3229]
[1644329086743,36.05355938,112.61,112.56,13.5729]
[1644329090245,36.05355938,112.61,112.56,13.3229]
[1644329090849,36.05355938,112.61,112.56,13.5729]
[1644329098181,36.05355938,112.61,112.56,13.3229]
[1644329099381,37.31269106,112.61,112.56,13.3229]
[1644329100581,1.23908968,112.6,112.56,13.3229]
[1644329100784,1.23908968,112.6,112.54,0.024]
[1644329100785,35.59361534,112.59,112.55,13.3278]
[1644329106388,50.0,112.58,112.52,0.024]
[1644329106689,72.8835,112.58,112.52,0.024]
[1644329106887,97.1671,112.58,112.5,0.024]
[1644329107288,45.76168106,112.57,112.5,0.024]
[1644329107487,45.76168106,112.57,112.51,13.3321]
[1644329107890,45.76168106,112.57,112.52,1.89233217]
[1644329108388,45.76168106,112.57,112.52,2.14233217]
[1644329108988,45.76168106,112.57,112.53,15.22043217]
[1644329109189,45.76168106,112.57,112.53,13.3281]
[1644329109388,45.76168106,112.57,112.51,0.024]
[1644329109789,45.76168106,112.57,112.51,1.91633217]
[1644329109992,45.76168106,112.57,112.51,1.89233217]
[1644329110788,45.76168106,112.57,112.52,13.3308]
[1644329112588,45.76168106,112.57,112.52,15.22313217]
[1644329114491,45.76168106,112.57,112.52,13.3308]
[1644329117898,45.76168106,112.57,112.51,13.3321]
[1644329118304,59.09348106,112.57,112.49,0.024]
[1644329118898,4.442,112.56,112.47,0.024]
[1644329119098,38.0264051,112.55,112.47,13.3363]
[1644329119301,38.0264051,112.55,112.48,0.024]
[1644329119701,38.0264051,112.55,112.47,13.3363]
[1644329120808,13.3363,112.54,112.47,13.3363]
[1644329121206,35.45948664,112.53,112.47,13.3363]
[1644329122104,35.45948664,112.53,112.46,0.024]
[1644329122105,48.79648664,112.53,112.46,0.024]
[1644329122307,24.6532,112.52,112.46,0.024]
[1644329122507,24.6532,112.52,112.43,0.024]
[1644329122807,24.6532,112.52,112.42,0.024]
[1644329123005,38.5068367,112.51,112.42,0.024]
[1644329123709,51.8477367,112.51,112.43,13.3409]
[1644329124109,51.8477367,112.51,112.43,13.3649]
[1644329125709,51.8477367,112.51,112.43,13.3409]
[1644329126706,51.8477367,112.51,112.43,13.3649]
[1644329127209,51.8477367,112.51,112.43,13.6149]
[1644329128513,38.5068367,112.51,112.44,1.89233217]
[1644329128711,38.5068367,112.51,112.46,13.3363]
[1644329129110,38.5068367,112.51,112.46,13.5863]
[1644329129911,24.6532,112.52,112.46,13.5863]
[1644329130514,4.444,112.56,112.47,1.88776711]
[1644329130716,259.0583,112.6,112.49,13.332]
[1644329130917,47.43933484,112.59,112.49,34.04105468]
[1644329131119,47.43933484,112.59,112.5,0.024]
[1644329131716,24.8309,112.58,112.48,0.274]
[1644329131917,38.1633,112.58,112.5,13.3327]
[1644329132116,38.1633,112.58,112.5,13.3567]
[1644329132321,38.1633,112.58,112.5,0.024]
[1644329132517,44.60332901,112.57,112.48,0.024]
[1644329132716,44.60332901,112.57,112.47,0.024]
[1644329132918,53.05132901,112.57,112.47,0.024]
[1644329133721,13.3365,112.55,112.47,13.3602]
[1644329133919,13.3365,112.55,112.48,0.024]
[1644329133920,47.35525468,112.54,112.48,0.024]
[1644329134132,47.35525468,112.54,112.47,13.3602]
[1644329134735,60.69165468,112.54,112.47,0.024]
[1644329135135,60.69165468,112.54,112.45,0.024]
[1644329135536,60.69165468,112.54,112.44,0.024]
[1644329135836,4.444,112.53,112.46,0.024]
[1644329136135,52.79146185,112.52,112.44,13.3628]
[1644329136340,52.79146185,112.52,112.45,0.024]
[1644329136535,52.79146185,112.52,112.44,13.3628]
[1644329136738,52.79146185,112.52,112.45,0.024]
[1644329137035,52.79146185,112.52,112.44,13.6128]
[1644329139235,52.79146185,112.52,112.44,15.50056711]
[1644329139636,52.79146185,112.52,112.44,13.3628]
[1644329143343,39.45186185,112.52,112.44,13.3628]
[1644329143544,39.45186185,112.52,112.44,15.50056711]
[1644329143844,39.45186185,112.52,112.44,15.25056711]
[1644329144243,39.45186185,112.52,112.44,13.6128]
[1644329144644,39.45186185,112.52,112.44,15.50056711]
[1644329145346,39.45186185,112.52,112.44,15.25056711]
[1644329145546,52.79026185,112.52,112.44,13.3628]
[1644329146549,39.45186185,112.52,112.44,15.25056711]
[1644329146746,39.45186185,112.52,112.44,15.50056711]
[1644329147246,39.45186185,112.52,112.44,15.25056711]
[1644329147446,39.45186185,112.52,112.44,13.3628]
[1644329148748,52.79036185,112.52,112.44,15.24967666]
[1644329149152,52.79036185,112.52,112.44,13.3628]
[1644329149750,57.23536185,112.52,112.44,13.3628]
[1644329150955,57.23536185,112.52,112.44,0.024]
[1644329150956,52.79036185,112.52,112.44,0.024]
[1644329153762,14.99775549,112.51,112.44,0.024]
[1644329153962,13.3452,112.49,112.42,0.024]
[1644329154168,12.89,112.48,112.42,0.024]
[1644329154366,22.5397,112.47,112.38,13.3464]
[1644329154562,22.5397,112.47,112.39,0.024]
[1644329154770,48.15159624,112.46,112.39,0.024]
[1644329154965,13.3481,112.44,112.35,44.5111]
[1644329155165,42.4596836,112.43,112.36,0.024]
[1644329155566,42.4596836,112.43,112.36,13.3725]
[1644329155765,42.4596836,112.43,112.37,20.70070744]
[1644329155965,42.4596836,112.43,112.37,1.88687666]
[1644329156169,42.4596836,112.43,112.36,0.024]
[1644329156365,17.338,112.42,112.36,0.024]
[1644329156567,12.89,112.42,112.34,0.024]
[1644329156774,4.449,112.41,112.35,0.024]
[1644329156970,39.26645576,112.4,112.33,4.469]
[1644329157166,57.07025576,112.4,112.33,0.024]
[1644329157368,69.96025576,112.4,112.31,0.024]
[1644329157568,65.51125576,112.4,112.31,0.024]
[1644329157767,65.51125576,112.4,112.31,1.90170653]
[1644329157970,65.51125576,112.4,112.32,0.024]
[1644329159869,52.62125576,112.4,112.32,0.024]
[1644329160070,39.26645576,112.4,112.33,24.73456764]
[1644329160292,23.3794,112.43,112.33,25.00856764]
[1644329160493,12.89,112.45,112.34,1.90170653]
[1644329160693,12.89,112.45,112.35,0.024]
[1644329160894,12.89,112.45,112.35,1.90170653]
[1644329161092,26.2384,112.45,112.36,0.024]
[1644329161294,37.8485046,112.44,112.36,0.024]
[1644329161893,62.0364046,112.44,112.36,0.024]
[1644329162098,62.0364046,112.44,112.36,1.87770653]
[1644329162294,62.0364046,112.44,112.36,0.024]
[1644329162494,62.0364046,112.44,112.34,0.024]
[1644329162793,75.3862046,112.44,112.34,0.024]
[1644329162993,75.3862046,112.44,112.35,1.87770653]
[1644329163196,62.0364046,112.44,112.36,0.024]
[1644329163794,62.0364046,112.44,112.36,1.90170653]
[1644329164195,62.0364046,112.44,112.36,2.15170653]
[1644329164497,62.0364046,112.44,112.36,0.024]
[1644329164697,62.0364046,112.44,112.34,0.024]
[1644329164897,66.4844046,112.44,112.34,0.024]
[1644329165694,66.4844046,112.44,112.35,13.348]
[1644329165894,66.4844046,112.44,112.36,0.024]
[1644329166096,62.0364046,112.44,112.36,0.024]
[1644329167899,62.0364046,112.44,112.36,13.3709]
[1644329168300,62.0364046,112.44,112.36,13.6209]
[1644329170901,62.0364046,112.44,112.36,0.274]
[1644329171302,62.0364046,112.44,112.36,0.024]
[1644329171503,62.0364046,112.44,112.34,0.024]
[1644329171702,62.0364046,112.44,112.36,0.024]
[1644329171907,62.0364046,112.44,112.34,0.024]
[1644329172804,62.0364046,112.44,112.35,13.3482]
[1644329173007,62.0364046,112.44,112.36,0.024]
[1644329173205,75.3859046,112.44,112.36,0.024]
[1644329173407,75.3859046,112.44,112.34,0.024]
[1644329174206,77.49366009,112.44,112.34,0.024]
[1644329175306,90.38366009,112.44,112.34,0.024]
[1644329176408,4.448,112.43,112.32,0.024]
[1644329176607,13.3525,112.41,112.32,0.024]
[1644329176807,37.9735,112.41,112.32,0.024]
[1644329177206,37.9735,112.41,112.32,13.376]
[1644329177412,37.9735,112.41,112.33,0.024]
[1644329177608,42.4430929,112.4,112.33,0.024]
[1644329178214,55.7967929,112.4,112.33,0.024]
[1644329179010,42.4430929,112.4,112.33,0.024]
[1644329186619,55.7963929,112.4,112.33,0.024]
[1644329187020,68.6863929,112.4,112.31,0.024]
[1644329187222,70.79414839,112.4,112.3,0.024]
[1644329187421,4.45,112.39,112.3,0.024]
[1644329187622,12.89,112.38,112.3,0.024]
[1644329187828,44.24561662,112.37,112.3,0.024]
[1644329188023,44.24561662,112.37,112.3,0.80992111]
[1644329188224,23.1228,112.39,112.3,2.68762764]
[1644329188423,23.1228,112.39,112.31,0.024]
[1644329189225,45.37117721,112.38,112.31,1.90170653]
[1644329189425,45.37117721,112.38,112.31,1.87770653]
[1644329190124,45.37117721,112.38,112.31,1.90170653]
[1644329192624,45.37117721,112.38,112.31,0.024]
[1644329192829,45.37117721,112.38,112.3,26.8722]
[1644329193227,45.37117721,112.38,112.3,28.7548491]
[1644329194043,23.1228,112.39,112.31,0.75020199]
[1644329194270,36.7421,112.42,112.33,13.3516]
[1644329194452,46.7574,112.42,112.33,13.3516]
[1644329194650,46.7574,112.42,112.34,1.9066491]
[1644329194850,46.7574,112.42,112.34,2.1566491]
[1644329195049,39.58944123,112.41,112.34,2.1566491]
[1644329195250,39.58944123,112.41,112.34,8.1326491]
[1644329195455,39.58944123,112.41,112.34,2.1326491]
[1644329195850,39.58944123,112.41,112.34,15.4825491]
[1644329196053,39.58944123,112.41,112.34,21.4825491]
[1644329196753,39.58944123,112.41,112.34,15.5065491]
[1644329197452,39.58944123,112.41,112.34,15.4825491]
[1644329198255,39.58944123,112.41,112.34,15.5065491]
[1644329199154,46.70714,112.42,112.35,20.67622535]
[1644329199352,46.64226,112.42,112.35,20.67622535]
[1644329199554,46.64226,112.42,112.36,1.88772388]
[1644329199754,46.64226,112.42,112.36,0.25]
[1644329200559,37.60374363,112.41,112.36,0.25]
[1644329201257,37.60374363,112.41,112.35,13.6232]
[1644329205363,37.60374363,112.41,112.35,13.3732]
[1644329205561,37.60374363,112.41,112.35,0.024]
[1644329206566,37.60374363,112.41,112.34,37.2513]
[1644329206766,50.95544363,112.41,112.34,37.2513]
[1644329207265,50.95544363,112.41,112.34,37.0013]
[1644329207467,50.95544363,112.41,112.33,13.3759]
[1644329207668,50.95544363,112.41,112.33,0.024]
[1644329208668,50.95544363,112.41,112.33,1.91172388]
[1644329210071,57.51219912,112.41,112.33,0.024]
[1644329210271,13.357,112.38,112.33,0.024]
[1644329210469,13.357,112.38,112.28,24.5603]
[1644329210671,13.357,112.38,112.29,0.024]
[1644329210873,42.72019093,112.37,112.29,21.50318838]
[1644329211072,42.72019093,112.37,112.29,34.85988838]
[1644329211272,42.72019093,112.37,112.29,13.6307]
[1644329211772,56.07749093,112.37,112.29,13.6307]
[1644329214981,56.07749093,112.37,112.29,0.024]
[1644329215382,23.5013,112.36,112.27,0.024]
[1644329215583,13.3604,112.34,112.27,0.024]
[1644329215879,13.3604,112.34,112.27,1.88772388]
[1644329216084,45.9816313,112.33,112.27,0.024]
[1644329216479,45.9816313,112.33,112.26,62.77592388]
[1644329217082,45.9816313,112.33,112.27,21.52679834]
[1644329217283,45.9816313,112.33,112.27,21.77679834]
[1644329217481,45.9816313,112.33,112.27,15.49682388]
[1644329219986,23.5013,112.36,112.27,19.78246726]
[1644329220186,23.5013,112.36,112.3,13.3554]
[1644329220804,23.5013,112.36,112.3,13.6054]
[1644329221002,43.20437706,112.35,112.3,13.3554]
[1644329226512,43.20437706,112.35,112.28,22.7009]
[1644329226710,43.20437706,112.35,112.28,22.9509]
[1644329227211,43.20437706,112.35,112.28,22.9269]
[1644329227413,43.20437706,112.35,112.28,22.6769]
[1644329228712,43.20437706,112.35,112.28,36.035]
[1644329229612,36.8594,112.36,112.28,36.53056874]
[1644329229813,14.15163588,112.39,112.29,1.88772388]
[1644329230012,1.26163588,112.39,112.31,13.3541]
[1644329230213,24.0261,112.4,112.31,13.6041]
[1644329230412,24.0261,112.4,112.32,1.91172388]
[1644329230814,41.37892141,112.39,112.32,2.16172388]
[1644329231815,41.37892141,112.39,112.33,13.3518]
[1644329233117,24.0261,112.4,112.33,17.79890959]
[1644329233315,24.0261,112.4,112.33,17.82290959]
[1644329233716,24.0261,112.4,112.33,18.07290959]
[1644329233916,61.44070571,112.4,112.33,18.07290959]
[1644329234717,61.44070571,112.4,112.33,13.6258]
[1644329235718,61.44070571,112.4,112.33,41.63149739]
[1644329236520,61.44070571,112.4,112.33,13.6258]
[1644329237320,61.44070571,112.4,112.33,38.97263379]
[1644329239622,61.44070571,112.4,112.34,1.88772388]
[1644329239823,61.44070571,112.4,112.34,0.25]
[1644329240725,61.44070571,112.4,112.34,13.6016]
[1644329241124,61.44070571,112.4,112.34,13.3516]
[1644329241323,24.0261,112.4,112.34,13.3516]
[1644329242625,41.05688506,112.39,112.34,13.3516]
[1644329242825,41.05688506,112.39,112.34,13.6016]
[1644329243026,41.05688506,112.39,112.34,13.3516]
[1644329243226,41.05688506,112.39,112.33,13.3768]
[1644329243525,41.05688506,112.39,112.33,13.3528]
[1644329244125,41.05688506,112.39,112.32,24.8692]
[1644329244326,41.05688506,112.39,112.32,0.024]
[1644329244531,42.31852094,112.39,112.32,0.024]
[1644329244726,42.31852094,112.39,112.31,13.3552]
[1644329245628,42.31852094,112.39,112.31,13.6292]
[1644329245827,55.67212094,112.39,112.31,13.3792]
[1644329246028,55.67212094,112.39,112.31,13.3552]
[1644329246930,55.67212094,112.39,112.31,13.6052]
[1644329247431,55.67212094,112.39,112.31,13.6292]
[1644329248530,14.61683588,112.38,112.31,13.3792]
[1644329248931,39.55423588,112.38,112.31,13.3792]
[1644329249431,38.30389954,112.37,112.31,13.3792]
[1644329249635,51.65969954,112.37,112.3,13.3807]
[1644329249934,52.92133542,112.37,112.3,0.024]
[1644329250130,23.96453588,112.36,112.27,24.5411]
[1644329250330,23.96453588,112.36,112.28,0.024]
[1644329250531,41.27157654,112.35,112.28,0.024]
[1644329250730,41.27157654,112.35,112.27,24.7911]
[1644329250931,54.62977654,112.35,112.28,13.3591]
[1644329251129,54.62977654,112.35,112.28,0.024]
[1644329251331,54.62977654,112.35,112.27,0.024]
[1644329252137,55.89141242,112.35,112.27,0.024]
[1644329252533,54.62977654,112.35,112.27,0.024]
[1644329252732,55.89141242,112.35,112.27,13.384]
[1644329252934,55.89141242,112.35,112.27,0.024]
[1644329254933,60.34141242,112.35,112.27,0.024]
[1644329255534,14.15163588,112.34,112.27,0.024]
[1644329255735,13.3649,112.32,112.27,0.024]
[1644329255935,36.1471,112.32,112.25,0.024]
[1644329256135,47.0920956,112.31,112.25,0.024]
[1644329256536,24.2248,112.3,112.23,0.024]
[1644329256738,24.2248,112.3,112.22,0.024]
[1644329256937,37.5901,112.3,112.22,0.024]
[1644329257345,53.11530899,112.31,112.22,1.91172388]
[1644329257538,2.51490161,112.35,112.23,104.024]
[1644329257739,2.51490161,112.35,112.23,114.38957003]
[1644329257940,2.51490161,112.35,112.24,14.80172388]
[1644329257941,1.25946989,112.35,112.24,14.80172388]
[1644329258142,1.25946989,112.35,112.25,0.024]
[1644329258339,48.35916635,112.37,112.26,12.89]
[1644329258539,47.09969646,112.37,112.29,13.354]
[1644329258741,47.09969646,112.37,112.29,26.518]
[1644329259145,47.09969646,112.37,112.3,1.88772388]
[1644329259541,47.09969646,112.37,112.31,13.3565]
[1644329259741,14.61526989,112.38,112.31,13.3565]
[1644329259946,1.25946989,112.38,112.32,1.88772388]
[1644329260141,1.25946989,112.4,112.32,14.77772388]
[1644329260341,1.25946989,112.41,112.32,15.02772388]
[1644329260741,34.67307939,112.4,112.32,15.02772388]
[1644329261146,35.93254928,112.4,112.33,13.3515]
[1644329261344,35.93254928,112.4,112.33,13.6015]
[1644329261967,35.93254928,112.4,112.33,13.3515]
[1644329262269,1.25946989,112.38,112.32,13.3556]
[1644329262470,1.25946989,112.39,112.32,13.3556]
[1644329263069,44.95266516,112.38,112.32,13.3556]
[1644329263672,58.30836516,112.38,112.32,13.3556]
[1644329264371,58.30836516,112.38,112.32,13.6056]
[1644329265076,58.30836516,112.38,112.32,13.3556]
[1644329266979,58.30836516,112.38,112.32,13.6056]
[1644329267177,44.95266516,112.38,112.32,13.6056]
[1644329267377,44.95266516,112.38,112.32,15.49332388]
[1644329267579,44.95266516,112.38,112.32,28.38332388]
[1644329268778,44.95266516,112.38,112.32,28.13332388]
[1644329268979,44.95266516,112.38,112.32,26.2456]
[1644329269179,44.95266516,112.38,112.32,13.3556]
[1644329269783,46.21213505,112.38,112.32,13.3556]
[1644329270683,59.56773505,112.38,112.32,13.3556]
[1644329271581,46.21213505,112.38,112.32,13.3556]
[1644329271781,44.95266516,112.38,112.32,13.3556]
[1644329272181,44.95266516,112.38,112.32,13.6056]
[1644329272585,46.21213505,112.38,112.32,13.6056]
[1644329273883,58.30826516,112.38,112.32,13.6056]
[1644329274085,59.56773505,112.38,112.32,13.6056]
[1644329275484,58.30826516,112.38,112.32,13.6056]
[1644329275684,58.30826516,112.38,112.32,15.49332388]
[1644329275885,58.30826516,112.38,112.32,13.6056]
[1644329276087,59.56773505,112.38,112.32,13.6056]
[1644329279994,46.21213505,112.38,112.32,13.6056]
[1644329280592,44.95266516,112.38,112.32,13.6056]
[1644329280793,46.21213505,112.38,112.32,13.6056]
[1644329280992,44.95266516,112.38,112.32,13.6056]
[1644329281294,46.21213505,112.38,112.32,13.6056]
[1644329282103,44.95266516,112.38,112.32,13.6056]
[1644329283506,44.95266516,112.38,112.32,15.49338074]
[1644329284104,44.95266516,112.38,112.32,21.49338074]
[1644329284404,46.21213505,112.38,112.32,21.49338074]
[1644329284606,46.21213505,112.38,112.32,15.49338074]
[1644329287924,1.25946989,112.37,112.32,15.49338074]
[1644329288122,39.06297637,112.36,112.32,15.49338074]
[1644329289724,1.25946989,112.37,112.32,15.49338074]
[1644329290127,1.25946989,112.39,112.32,28.38338074]
[1644329290326,1.25946989,112.38,112.32,26.4956]
[1644329290725,43.29211014,112.37,112.32,26.4956]
[1644329294128,43.29211014,112.37,112.32,26.2456]
[1644329294829,44.55158003,112.37,112.32,13.3556]
[1644329295327,44.55158003,112.37,112.32,13.6056]
[1644329295528,43.29211014,112.37,112.32,13.6056]
[1644329295730,43.29211014,112.37,112.32,13.3556]
[1644329295932,44.55158003,112.37,112.32,13.3556]
[1644329296730,1.25946989,112.37,112.32,13.6056]
[1644329297231,1.25946989,112.38,112.32,13.6056]
[1644329297831,37.75028064,112.37,112.32,13.3556]
[1644329299133,37.75028064,112.37,112.32,13.6056]
[1644329300536,39.00975053,112.37,112.32,13.6056]
[1644329301939,1.25946989,112.38,112.32,13.6056]
[1644329302839,39.30302846,112.37,112.32,13.6056]
[1644329304145,39.30302846,112.37,112.32,13.3556]
[1644329304642,40.56249835,112.37,112.32,13.3556]
[1644329305244,40.56249835,112.37,112.32,13.6056]
[1644329305442,39.30302846,112.37,112.32,13.6056]
[1644329305642,40.56249835,112.37,112.32,13.3556]
[1644329306042,39.30302846,112.37,112.32,13.3556]
[1644329306943,39.30302846,112.37,112.32,13.6056]
[1644329307145,40.56249835,112.37,112.32,13.6056]
[1644329307445,39.30302846,112.37,112.32,13.6056]
[1644329309845,40.56249835,112.37,112.32,13.6056]
[1644329312447,40.56249835,112.37,112.32,13.3556]
[1644329314254,40.56249835,112.37,112.31,13.381]
[1644329314450,1.25946989,112.36,112.28,22.8076]
[1644329314657,38.53162143,112.35,112.28,22.8076]
[1644329314850,1.25946989,112.34,112.28,22.8076]
[1644329315049,36.55537962,112.33,112.28,22.8076]
[1644329315449,36.55537962,112.33,112.29,13.3583]
[1644329317052,36.55537962,112.33,112.26,23.2574]
[1644329317354,36.55537962,112.33,112.28,13.3596]
[1644329338796,36.55537962,112.33,112.28,13.6096]
[1644329342299,36.55537962,112.33,112.28,13.3596]
[1644329344503,51.17554951,112.33,112.27,0.024]
[1644329344700,51.17554951,112.33,112.25,0.274]
[1644329344899,51.17554951,112.33,112.25,0.024]
[1644329345102,1.25946989,112.32,112.25,0.024]
[1644329345300,42.9487467,112.31,112.26,13.3617]
[1644329345501,37.89696989,112.32,112.26,13.3617]
[1644329345702,24.53506989,112.32,112.26,13.6117]
[1644329345904,23.2756,112.32,112.26,13.6117]
[1644329346306,23.2756,112.32,112.26,13.3617]
[1644329346506,46.84611593,112.31,112.26,13.3617]
[1644329347405,46.84611593,112.31,112.25,36.4626]
[1644329347604,46.84611593,112.31,112.25,36.7126]
[1644329348005,46.84611593,112.31,112.25,36.4626]
[1644329348205,48.10558582,112.31,112.25,36.4626]
[1644329348806,61.46848582,112.31,112.25,36.4626]
[1644329349206,60.20901593,112.31,112.25,36.4626]
[1644329349609,60.20901593,112.31,112.25,36.7126]
[1644329350009,60.20901593,112.31,112.25,36.4626]
[1644329350910,61.46848582,112.31,112.25,36.4626]
[1644329351115,46.84611593,112.31,112.25,36.4626]
[1644329351307,46.84611593,112.31,112.25,36.7126]
[1644329351507,46.84611593,112.31,112.25,36.4626]
[1644329351707,46.84611593,112.31,112.25,36.7126]
[1644329354313,46.84611593,112.31,112.25,13.6369]
[1644329354512,46.84611593,112.31,112.25,13.3869]
[1644329355214,46.84611593,112.31,112.25,13.6369]
[1644329356012,46.84611593,112.31,112.25,13.3869]
[1644329356614,48.10558582,112.31,112.25,13.3869]
[1644329357715,61.46838582,112.31,112.25,13.3869]
[1644329358019,60.20891593,112.31,112.25,13.3869]
[1644329358518,46.84611593,112.31,112.25,13.3869]
[1644329358718,46.84611593,112.31,112.25,13.6369]
[1644329360816,23.2756,112.32,112.25,13.6369]
[1644329361017,23.2756,112.32,112.25,26.5269]
[1644329361223,23.2756,112.32,112.25,38.6789]
[1644329362121,23.2756,112.32,112.25,43.1309]
[1644329362937,45.23577721,112.31,112.25,43.1309]
[1644329364341,45.23577721,112.31,112.25,38.6789]
[1644329364540,45.23577721,112.31,112.25,38.4289]
[1644329364741,45.23577721,112.31,112.25,25.5389]
[1644329365743,58.59837721,112.31,112.25,25.5389]
[1644329366744,59.8578471,112.31,112.25,25.5389]
[1644329367745,59.8578471,112.31,112.25,25.5149]
[1644329367946,58.59837721,112.31,112.25,25.5149]
[1644329368347,58.59837721,112.31,112.25,12.152]
[1644329368547,59.8578471,112.31,112.25,12.152]
[1644329370149,59.8578471,112.31,112.25,25.5158]
[1644329371349,59.8578471,112.31,112.25,12.152]
[1644329371556,1.25946989,112.3,112.25,12.152]
[1644329371751,4.453,112.29,112.25,12.152]
[1644329372050,13.3671,112.28,112.22,0.024]
[1644329372250,13.3671,112.28,112.2,12.914]
[1644329372451,38.71753702,112.27,112.21,13.3679]
[1644329372651,38.71753702,112.27,112.21,0.024]
[1644329372851,38.71753702,112.27,112.21,0.274]
[1644329373055,36.79506323,112.25,112.19,0.024]
[1644329374055,36.79506323,112.25,112.2,13.3681]
[1644329374253,50.16526323,112.25,112.19,0.024]
[1644329375757,50.16526323,112.25,112.19,13.3942]
[1644329375957,50.16526323,112.25,112.19,13.6442]
[1644329376663,36.79506323,112.25,112.19,13.6442]
[1644329383471,36.79506323,112.25,112.19,13.3942]
[1644329384871,36.79506323,112.25,112.19,13.6442]
[1644329395082,36.79506323,112.25,112.19,26.5342]
[1644329395383,23.0564,112.26,112.19,26.5342]
[1644329395985,1.25946989,112.29,112.19,26.5342]
[1644329396184,49.23696989,112.3,112.2,22.8764]
[1644329396387,47.810585,112.29,112.23,13.3655]
[1644329396604,47.810585,112.29,112.23,13.6155]
[1644329398506,61.342,112.3,112.23,13.6155]
[1644329398705,47.9775,112.3,112.23,13.6395]
[1644329399004,23.3096,112.3,112.23,13.6395]
[1644329399204,23.3096,112.3,112.25,13.3609]
[1644329399604,70.44093511,112.3,112.25,13.3609]
[1644329399806,23.3096,112.3,112.25,13.6109]
[1644329400909,38.58917634,112.29,112.25,13.6109]
[1644329401306,23.3096,112.3,112.25,13.6109]
[1644329402306,42.54558656,112.29,112.25,13.6109]
[1644329402907,1.25946989,112.32,112.26,4.453]
[1644329403111,1.25946989,112.32,112.29,1.88890712]